Cogmind - Beta 12 @@@ ROGUE MODE // 2023.03.21 @ 17:49:15 // Winter2019/RPGLIKE Player: ArabianSandBoa Result: Destroyed by G-67 Veteran with Plasma Rifle Performance ------------- Evolutions (4) 2000 Regions Visited (16) 3200 Robots Destroyed (625) 3125 Value Destroyed (23989) 23989 Prototype IDs (76) 1520 Alien Tech Used (0) 0 Bonus (17023) 17023 TOTAL SCORE: 50857 Bonus ------- Triggered High Security 1500 High Alert Combat Kills 14603 Follower Combat Kills 246 Entered Garrisons 400 Aligned with FarCom 300 Met Imprinter 300 Friendly Fire -326 Cogmind --------- Core Integrity 0/900 Matter 308/400 Energy 530/530 System Corruption 0% Temperature Cool (37) Movement Walking (125) Location -6/Garrison Parts ------- > --- POWER (2) -------- Neutrino Core Neutrino Core > --- PROPULSION (4) --- Improved Titanium Leg Improved Titanium Leg Advanced Myomer Leg Advanced Myomer Leg > --- UTILITY (8) ------ 0b10 Decoder Chip [Looter] 0b10 Decoder Chip [Scout] Experimental Armor Integrity Analyzer Improved Particle Charger Advanced Weapon Cycler 8R-AWN's Armor/EX > --- WEAPON (6) ------- Storm Laser 8R-AWN's Boregun 8R-AWN's Boregun > --- INVENTORY (5) ---- Advanced Signal Interpreter Encrypted Comm Array Improved Powered Armor Heavy Plasma Cannon Heavy Plasma Cannon Peak State ------------ > --- POWER ------------ Neutrino Core Neutrino Core > --- PROPULSION ------- Improved Carbon-fiber Leg Improved Titanium Leg Advanced Myomer Leg Advanced Myomer Leg > --- UTILITY ---------- Experimental Optical Array Encrypted Comm Array Experimental Armor Integrity Analyzer Advanced Weapon Cycler 8R-AWN's Armor/EX Experimental System Shield > --- WEAPON ----------- 8R-AWN's Boregun 8R-AWN's Boregun Master Tearclaws CR-A16's Pointy Stick > --- INVENTORY -------- Storm Laser [Rating: 145] Favorites ----------- Power Neutrino Core Engine Light Angular Momentum Engine Power Core Neutrino Core Reactor Cold Fusion Reactor Propulsion Advanced Myomer Leg Treads Improved Treads Leg Advanced Myomer Leg Wheel Compact Wheel Utility Salvage Targeting Computer Device Advanced Weapon Cycler Storage Medium Matter Pod Processor Salvage Targeting Computer Hackware System Shield Protection 8R-AWN's Armor/EX Weapon Enhanced Autogun Energy Gun Heavy EM Pulse Gun Energy Cannon EM Pulse Cannon Ballistic Gun Enhanced Autogun Ballistic Cannon Improved Light Cannon Launcher Mini Grenade Launcher Slashing Weapon Katana Piercing Weapon CR-A16's Pointy Stick Special Melee Weapon Improved Datajack Build | -11 -10 -10 -9 -9 -9 -8 -8 -8 -8 -7 -7 -7 -7 -6 -6 -6 ------- Run | Jun Mat Min Mat Min Exi Min Mat Gar Mat Fac Low Low Zio Pro Fac Gar Slots Evolved 16 | 3 2 1 2 1 . 1 2 1 1 1 . . . . . 1 Power 1 | . . . . 1 . . . . . . . . . . . . Propulsion 3 | . 1 . . . . 1 . 1 . . . . . . . . Utility 7 | 2 1 . 1 . . . 2 . . 1 . . . . . . Weapon 5 | 1 . 1 1 . . . . . 1 . . . . . . 1 Parts Attached 152 | 5 16 9 17 5 18 6 18 4 4 10 1 9 18 4 3 5 Power 13 | . 1 1 2 1 2 . 4 1 . . . 1 . . . . Engine 4 | . . 1 2 1 . . . . . . . . . . . . Core 7 | . 1 . . . 1 . 3 1 . . . 1 . . . . Reactor 2 | . . . . . 1 . 1 . . . . . . . . . Propulsion 12 | 1 2 . . . 2 1 . 1 1 3 . . . . 1 . Treads 2 | . 2 . . . . . . . . . . . . . . . Leg 9 | . . . . . 2 1 . 1 1 3 . . . . 1 . Wheel 1 | 1 . . . . . . . . . . . . . . . . Hover . | . . . . . . . . . . . . . . . . . Flight . | . . . . . . . . . . . . . . . . . Utility 75 | 3 6 5 5 2 10 5 14 2 . 3 . 4 12 4 . . Device 35 | 2 3 1 1 1 5 4 5 2 . 1 . 2 4 4 . . Storage 1 | 1 . . . . . . . . . . . . . . . . Processor 18 | . 3 1 1 1 4 . . . . 1 . . 7 . . . Hackware 5 | . . . . . . . 4 . . . . . 1 . . . Protection 16 | . . 3 3 . 1 1 5 . . 1 . 2 . . . . Artifact . | . . . . . . . . . . . . . . . . . Weapon 52 | 1 7 3 10 2 4 . . . 3 4 1 4 6 . 2 5 Energy Gun 5 | . 2 1 . . . . . . . . . . 1 . 1 . Energy Cannon 4 | . . 1 1 . . . . . . . . . . . . 2 Ballistic Gun 28 | 1 2 . 5 2 2 . . . 3 3 1 3 2 . 1 3 Ballistic Cannon 4 | . 3 . . . . . . . . 1 . . . . . . Launcher 4 | . . . 3 . 1 . . . . . . . . . . . Special Weapon . | . . . . . . . . . . . . . . . . . Impact Weapon . | . . . . . . . . . . . . . . . . . Slashing Weapon 3 | . . 1 . . . . . . . . . 1 1 . . . Piercing Weapon 2 | . . . . . . . . . . . . . 2 . . . Special Melee Weapon 2 | . . . 1 . 1 . . . . . . . . . . . Unidentified Prototypes 13 | . . 1 2 . . 3 1 . . . . . 4 1 1 . Parts Lost 2 | . . . . . . . 1 . . . . . . . 1 . Power . | . . . . . . . . . . . . . . . . . Propulsion . | . . . . . . . . . . . . . . . . . Utility 1 | . . . . . . . 1 . . . . . . . . . Weapon 1 | . . . . . . . . . . . . . . . 1 . Highest Loss Streak 1 | . . . . . . . 1 . . . . . . . 1 . To Critical Strikes . | . . . . . . . . . . . . . . . . . Average Slot Usage (%) 91 | . 99 99 99 94 99 100 93 87 87 88 88 88 76 72 72 73 Engine 2 | . 2 2 8 9 11 . . . . . . . . . . . Core 5 | . 10 7 . . 2 7 5 5 5 5 5 7 10 10 10 10 Reactor 2 | . . . . . . 7 5 5 5 5 5 2 . . . . Treads 6 | . 17 21 17 15 10 . . . . . . . . . . . Leg 12 | . . . . . 4 20 18 22 22 21 21 21 21 21 21 20 Device 12 | . 20 3 . 6 4 26 18 13 22 21 15 16 8 8 10 10 Processor 9 | . 17 32 12 22 21 3 . . . . 5 3 14 17 15 15 Hackware 1 | . . . . . . . 7 8 . . . . 1 . . . Protection 9 | . . 6 29 8 11 5 9 5 5 6 10 10 6 5 5 5 Energy Gun 2 | . 9 14 2 . . . . . . . . . 3 5 4 5 Energy Cannon 1 | . . 6 7 . . . . . . . . . . . . 3 Ballistic Gun 18 | . 3 . 14 22 25 28 25 23 24 26 25 25 5 5 5 3 Ballistic Cannon 1 | . 12 . . . . . . . . . . . . . . . Naked Turns . | . . . . . . . . . . . . . . . . . Heaviest Build 108 | 11 16 30 45 37 63 57 81 77 80 100 99 108 103 80 83 97 Greatest Support 105 | 16 46 46 46 46 60 75 75 88 92 100 98 103 103 103 105 105 Greatest Overweight (x) 13 | 1 . . . . 13 . 1 1 . 1 1 1 . . . . Average Overweight (x) . | . . . . . . . . . . . . . . . . . Largest Inventory Capacity 5 | 1 2 3 3 3 3 3 3 3 3 4 4 4 4 5 5 5 Average Capacity 3 | . 1 2 3 3 3 3 3 3 3 3 4 4 4 4 5 5 Most Carried 5 | 1 2 3 3 3 3 3 3 3 3 4 4 4 4 5 5 5 Average Carried 3 | . 1 1 2 2 1 3 2 2 2 3 3 3 3 4 4 4 Final Capacity 5 | 1 2 3 3 3 3 3 3 3 3 4 4 4 4 5 5 5 Final Carried 5 | 1 1 3 3 3 3 3 3 3 3 4 4 4 4 5 4 5 Class Distribution -------------------- 31% | Scavenger-Gunner 24% | Hacker-Mutant 19% | Hacker-Gunner 12% | Scavenger-Mutant 5% | Mutant 4% | Hacker-Tank Dominant Class ---------------- Mutant | -10/Materials Hacker-Mutant | -10/Mines Hacker-Mutant | -9/Materials Hacker-Gunner | -9/Mines Hacker-Mutant | -9/Exiles Scavenger-Mutant | -8/Mines Hacker-Gunner | -8/Materials Scavenger-Gunner | -8/Garrison Scavenger-Gunner | -8/Materials Scavenger-Gunner | -7/Factory Scavenger-Gunner | -7/Lower Caves Scavenger-Gunner | -7/Lower Caves Hacker-Gunner | -7/Zion Hacker-Gunner | -6/Proximity Caves Hacker-Gunner | -6/Factory Hacker-Gunner | -6/Garrison Resources | -11 -10 -10 -9 -9 -9 -8 -8 -8 -8 -7 -7 -7 -7 -6 -6 -6 ----------- Run | Jun Mat Min Mat Min Exi Min Mat Gar Mat Fac Low Low Zio Pro Fac Gar Matter Collected 19210 | 345 825 78 1343 418 503 595 2683 1448 2686 6314 652 697 54 319 52 198 Remotely . | . . . . . . . . . . . . . . . . . Salvage Created 29159 | 195 829 237 3056 1980 444 683 2585 1838 4175 9515 1018 620 . 604 504 876 Parts 1667 | 14 70 19 198 83 78 36 182 116 173 527 48 56 . 13 17 37 Haulers Intercepted 25 | . 2 . 6 . . . 6 . 5 5 . . . 1 . . Recyclers Shooed 9 | . 2 . 2 3 . . . . . . . . . . 2 . Parts Field Recycled . | . . . . . . . . . . . . . . . . . Retrieved Matter . | . . . . . . . . . . . . . . . . . Parts Self-Destructed 90 | . . . . . . . . . . . 35 42 . 13 . . Prevented 2 | . . . . . . . . . . . . . . 2 . . Kills | -11 -10 -10 -9 -9 -9 -8 -8 -8 -8 -7 -7 -7 -7 -6 -6 -6 ------- Run | Jun Mat Min Mat Min Exi Min Mat Gar Mat Fac Low Low Zio Pro Fac Gar Combat Hostiles Destroyed 503 | . 19 3 62 16 1 17 50 39 71 164 15 17 . 7 5 17 Guns 473 | . 5 3 52 16 1 17 49 39 68 164 15 17 . 6 5 16 Cannons 21 | . 14 . 6 . . . . . . . . . . . . 1 AOE 7 | . . . 3 . . . 1 . 3 . . . . . . . Classes Destroyed 26 | 3 5 1 5 1 2 . 3 2 1 . 2 . . 1 . . Worker 22 | 1 1 . 7 3 . . 3 . . 7 . . . . . . Builder 28 | . 2 1 6 6 . . 5 . 1 7 . . . . . . Tunneler 12 | 5 . 2 . 4 . . 1 . . . . . . . . . Hauler 25 | . 2 . 6 . . . 6 . 5 5 . . . 1 . . Recycler 33 | 1 3 1 2 15 . . 1 . 1 6 . . . . 3 . Carrier 5 | . . . . . . . . . 2 3 . . . . . . Mechanic 12 | . . . 2 . . . 1 . 3 6 . . . . . . Operator 8 | . 2 . 2 . . . 2 . . 2 . . . . . . Turret 1 | . . . . . 1 . . . . . . . . . . . Watcher 24 | . 3 . 5 . . . 5 1 4 6 . . . . . . Swarmer 61 | . . 1 12 7 . 7 9 3 2 7 3 . . . 5 5 Grunt 249 | . 19 2 29 6 . 8 24 21 48 63 8 11 . 6 . 4 Brawler 31 | . . . 5 1 . . . 4 6 14 . 1 . . . . Duelist 37 | . . . 6 1 . 1 2 3 5 17 . . . . . 2 Protector 20 | . . . 1 . . . 2 . 4 13 . . . . . . Sentry 36 | . . . 10 . . . 9 4 4 4 . 1 . . . 4 Specialist 2 | . . . . . . . 2 . . . . . . . . . Hunter 37 | . . . . . . . 1 . 1 32 1 . . . . 2 Programmer 17 | . . . . . . . . 3 . 13 1 . . . . . Heavy 3 | . . . . . . . 1 . 1 1 . . . . . . Behemoth 3 | . . . . . . . . 1 . . . 1 . 1 . . Zionite 6 | . . . . . 6 . . . . . . . . . . . Decomposer 3 | . . . . . . . . . . . 3 . . . . . Packrat 1 | . . . . . . . . . . . . 1 . . . . Samaritan 2 | . . . . . . . . . . . 2 . . . . . Thief 2 | . . . . . . . . . . . 2 . . . . . Master Thief 3 | . . . . . . . . . . . . 3 . . . . Assembled 1 | . . . . 1 . . . . . . . . . . . . Fireman 1 | . . . . . . . . . . . . . . 1 . . Best Kill Streak 32 | 3 4 2 10 11 9 5 11 5 21 32 5 4 . 4 5 8 Combat Bots Only 32 | . 4 2 9 5 1 5 8 5 18 32 5 4 . 3 3 8 Max Kills in Single Turn 4 | 1 2 1 2 2 2 2 3 2 3 4 2 2 . 1 1 2 Gunslinging 2 | . . . 1 1 . 1 1 1 2 1 1 1 . . . . Exploded 3 | . . . 1 . . . 1 . 3 . . . . . . . Melee . | . . . . . . . . . . . . . . . . . Uniques/NPCs Destroyed 5 | . . . . . 4 1 . . . . . . . . . . 8R-AWN (-9/Exiles) EX-DEC (-9/Exiles) EX-BIN (-9/Exiles) EX-HEX (-9/Exiles) AD-0RF (-8/Mines) Combat | -11 -10 -10 -9 -9 -9 -8 -8 -8 -8 -7 -7 -7 -7 -6 -6 -6 -------- Run | Jun Mat Min Mat Min Exi Min Mat Gar Mat Fac Low Low Zio Pro Fac Gar Damage Taken 10645 | . 494 100 1436 169 585 347 778 520 837 2832 141 270 . 207 148 1781 Core 6394 | . 399 68 862 123 406 218 463 270 465 1647 73 168 . 106 86 1040 Absorbed by Shields . | . . . . . . . . . . . . . . . . . Redirected to Core 5737 | . 298 64 770 113 303 184 437 270 422 1487 65 158 . 106 86 974 Redirected to Shielding 146 | . . . . . . 67 79 . . . . . . . . . Regen/Repaired (Parts) 102 | . . . . . . . 102 . . . . . . . . . Core Remaining (%) 96 | 100 . 100 . . . 80 . . 100 . . . . 100 . . Volleys Fired 1350 | 15 135 16 232 60 35 43 161 83 158 283 28 31 . 8 10 52 Largest 5 | 2 2 2 4 3 3 4 4 4 5 5 5 5 . 2 2 3 Hottest 430 | 60 90 108 161 78 78 110 110 110 135 135 135 135 . 275 280 430 Shots Fired 4060 | 30 270 32 461 177 87 103 499 289 570 1173 137 151 . 9 12 60 Gun 3802 | 30 122 27 359 177 87 103 499 289 570 1173 137 151 . 9 12 57 Cannon 250 | . 148 5 94 . . . . . . . . . . . . 3 Launcher 8 | . . . 8 . . . . . . . . . . . . . Special . | . . . . . . . . . . . . . . . . . Kinetic 3730 | 15 186 . 300 177 87 103 499 289 570 1173 137 151 . 1 2 40 Thermal 132 | 15 20 . 59 . . . . . . . . . . 8 10 20 Explosive 8 | . . . 8 . . . . . . . . . . . . . Electromagnetic 190 | . 64 32 94 . . . . . . . . . . . . . Robot Hit Streak 61 | 13 25 8 34 61 35 22 22 26 35 42 20 41 . 14 15 36 Robot Miss Streak 8 | 2 2 1 3 2 1 2 3 2 2 2 4 5 . 3 8 2 Penetration Max 2 | . . . . 1 1 . 2 1 2 2 1 . . . . . Secondary Targets 110 | . . 1 7 2 . 2 11 4 17 56 4 4 . . . 2 Max Gunslinging Chain 2 | . . 1 1 1 . 1 2 1 2 2 1 1 . . . 1 Shots Hit Robots 2562 | 22 105 14 271 116 80 71 283 144 357 872 70 111 . 9 9 28 Core Hits 1114 | 10 46 8 114 45 26 33 110 67 145 365 34 36 . 25 10 40 Critical Kills 163 | . . . 2 1 2 . 16 10 30 88 5 6 . . 1 2 Critical Parts Destroyed 283 | . 1 . 2 1 4 6 42 20 52 134 6 11 . . 1 3 Critical Strikes 463 | . 3 1 6 2 6 6 60 30 84 227 11 20 . . 2 5 Burn 1 | . . . 1 . . . . . . . . . . . . . Destroy 458 | . 1 . 4 2 6 6 60 30 84 227 11 20 . . 2 5 Blast 2 | . 2 . . . . . . . . . . . . . . . Corrupt 2 | . . 1 1 . . . . . . . . . . . . . Melee Attacks 9 | . . . 2 . 5 . . . . . . . 2 . . . Impact . | . . . . . . . . . . . . . . . . . Slashing 1 | . . . . . . . . . . . . . 1 . . . Piercing 1 | . . . . . . . . . . . . . 1 . . . Sneak Attacks 7 | . . . 2 . 5 . . . . . . . . . . . Combat Hostiles . | . . . . . . . . . . . . . . . . . Follow-up Attacks . | . . . . . . . . . . . . . . . . . Damage Inflicted 61858 | 216 1856 276 6474 2308 1450 1364 6088 3154 9227 21515 1758 2551 . 953 528 2140 Guns 57620 | 216 466 208 4536 2308 1450 1364 5789 3154 8763 21474 1758 2551 . 953 528 2102 Cannons 2445 | . 1367 26 1014 . . . . . . . . . . . . 38 Explosions 1793 | . 23 42 924 . . . 299 . 464 41 . . . . . . Melee . | . . . . . . . . . . . . . . . . . Ramming . | . . . . . . . . . . . . . . . . . Kinetic 54327 | 76 1664 . 3700 2308 1450 1364 5789 3154 8763 21474 1758 2551 . 18 37 221 Thermal 5040 | 140 153 42 836 . . . 160 . 364 . . . . 935 491 1919 Explosive 1094 | . . . 888 . . . 106 . 100 . . . . . . . Electromagnetic 1397 | . 39 234 1050 . . . 33 . . 41 . . . . . . Impact . | . . . . . . . . . . . . . . . . . Slashing . | . . . . . . . . . . . . . . . . . Piercing . | . . . . . . . . . . . . . . . . . Highest Corruption 3 | . . . . . . . . . . 3 1 1 2 . . . Average Corruption 1 | . . . . . . . . . . 2 1 1 1 . . . Corruption Purged 4 | . . . . . . . . . . 4 . . . . . . Corruption Blocked . | . . . . . . . . . . . . . . . . . Effects 46 | . . . . . . . . . . 26 9 9 2 . . . Message Errors 11 | . . . . . . . . . . 5 2 4 . . . . Matter Fused 7 | . . . . . . . . . . 4 2 1 . . . . Heat Flow Errors 4 | . . . . . . . . . . 3 . . 1 . . . Energy Discharges 3 | . . . . . . . . . . 1 1 1 . . . . Parts Rejected 1 | . . . . . . . . . . . . 1 . . . . Data Loss (minor) 3 | . . . . . . . . . . 1 1 1 . . . . Data Loss (major) 3 | . . . . . . . . . . 2 1 . . . . . Misfires 4 | . . . . . . . . . . 3 1 . . . . . Alerts 2 | . . . . . . . . . . 1 . . 1 . . . Weapon Failures 8 | . . . . . . . . . . 6 1 1 . . . . Overload Shots . | . . . . . . . . . . . . . . . . . Overflow Damage 182 | . 45 . 85 . . . 16 . 36 . . . . . . . Projectiles 128 | . 45 . 83 . . . . . . . . . . . . . Explosions 54 | . . . 2 . . . 16 . 36 . . . . . . . Melee . | . . . . . . . . . . . . . . . . . Knockbacks 13 | . 13 . . . . . . . . . . . . . . . Impact . | . . . . . . . . . . . . . . . . . Kinetic 13 | . 13 . . . . . . . . . . . . . . . Secondary . | . . . . . . . . . . . . . . . . . Self-Inflicted Damage 148 | . . . 148 . . . . . . . . . . . . . Shots 5 | . . . 5 . . . . . . . . . . . . . Rammed . | . . . . . . . . . . . . . . . . . Targets Rammed . | . . . . . . . . . . . . . . . . . Kicked . | . . . . . . . . . . . . . . . . . Crushed . | . . . . . . . . . . . . . . . . . Highest Temperature 432 | 20 192 33 331 9 24 159 189 156 432 345 112 160 56 170 144 386 Average Temperature 68 | 15 57 16 76 5 11 41 46 36 88 86 45 60 56 67 62 114 Received Heat Transfer 3663 | . 270 42 357 48 . 257 369 192 567 837 54 81 . 51 . 538 Effects 2 | . . . . . . . . . . 1 . . . . . 1 Shutdowns 1 | . . . . . . . . . . 1 . . . . . . Interference 1 | . . . . . . . . . . . . . . . . 1 Siege Activations . | . . . . . . . . . . . . . . . . . Robots Corrupted 1 | . . . 1 . . . . . . . . . . . . . Combat Hostiles . | . . . . . . . . . . . . . . . . . Parts Fried 10 | . . . 10 . . . . . . . . . . . . . Impact Corruptions . | . . . . . . . . . . . . . . . . . Robots Melted 1 | . . . . . . . . . . . . . . 1 . . Combat Hostiles 1 | . . . . . . . . . . . . . . 1 . . Parts Melted 16 | . . . 4 . . 2 . 1 . . . . . 4 2 3 Heat Transferred 6542 | 325 350 100 1480 . . . 100 . 237 . . . . 1250 575 2125 Parts Sabotaged . | . . . . . . . . . . . . . . . . . Parts Stolen 2 | . . . . . . . . . . . 1 1 . . . . Parts Stripped . | . . . . . . . . . . . . . . . . . Power Chain Reactions 1 | . . 1 . . . . . . . . . . . . . . Missiles Intercepted . | . . . . . . . . . . . . . . . . . Alert | -11 -10 -10 -9 -9 -9 -8 -8 -8 -8 -7 -7 -7 -7 -6 -6 -6 ------- Run | Jun Mat Min Mat Min Exi Min Mat Gar Mat Fac Low Low Zio Pro Fac Gar Peak Influence 5527 | 35 610 382 2171 1357 . 255 1341 2477 3122 5527 . . . . 287 673 Initial 1420 | . 22 225 . 1100 . . 40 871 1207 1420 . . . . 55 200 Average 1085 | 18 307 212 902 1242 . 161 767 1749 1770 2408 . . . . 120 385 Maximum Alert Level 5 | . 2 1 5 4 . 1 4 5 5 5 . . . . 1 2 Low Security (%) 17 | 100 39 52 15 . . 77 5 . . . . . . . 85 . Level 1 12 | . 19 47 16 . . 22 10 . . . . . . . 14 52 Level 2 10 | . 40 . 14 . . . 12 . . . . . . . . 47 Level 3 14 | . . . 17 . . . 63 13 . 6 . . . . . . Level 4 25 | . . . 16 99 . . 7 31 60 37 . . . . . . Level 5 8 | . . . 6 . . . . 55 9 14 . . . . . . High Security 11 | . . . 13 . . . . . 29 41 . . . . . . Max Security . | . . . . . . . . . . . . . . . . . Sterilizations 4 | . . . 1 . . . 1 . 1 1 . . . . . . Squads Dispatched 89 | . 6 . 16 1 . . 9 . 16 41 . . . . . . Investigation 30 | . 4 . 10 1 . . 6 . 5 4 . . . . . . Extermination 2 | . . . . . . . . . . 2 . . . . . . Reinforcement 3 | . 2 . . . . . 1 . . . . . . . . . Assault 54 | . . . 6 . . . 2 . 11 35 . . . . . . Garrison . | . . . . . . . . . . . . . . . . . Intercept . | . . . . . . . . . . . . . . . . . Searches Triggered . | . . . . . . . . . . . . . . . . . Construction Impeded . | . . . . . . . . . . . . . . . . . Haulers Reinforced . | . . . . . . . . . . . . . . . . . Active Scanning Responses . | . . . . . . . . . . . . . . . . . Cargo Convoy Interrupts . | . . . . . . . . . . . . . . . . . Stealth | -11 -10 -10 -9 -9 -9 -8 -8 -8 -8 -7 -7 -7 -7 -6 -6 -6 --------- Run | Jun Mat Min Mat Min Exi Min Mat Gar Mat Fac Low Low Zio Pro Fac Gar Distress Signals 6 | . 1 . 3 . . . 1 1 . . . . . . . . Communications Jammed 154 | . . . . . . . 36 4 48 66 . . . . . . Distress Signals 148 | . . . . . . . 30 4 48 66 . . . . . . Times Spotted 683 | . 26 3 90 16 20 17 56 37 96 251 13 17 . 9 7 25 Peak Tracking Total 15 | . 3 2 10 3 11 3 5 3 11 15 4 4 . 5 3 13 Tactical Retreats 19 | . 1 . 5 1 5 1 . . 1 4 . 1 . . . . Traps | -11 -10 -10 -9 -9 -9 -8 -8 -8 -8 -7 -7 -7 -7 -6 -6 -6 ------- Run | Jun Mat Min Mat Min Exi Min Mat Gar Mat Fac Low Low Zio Pro Fac Gar Traps Triggered 10 | . . 1 2 . . . 1 1 1 2 . . . . . 2 Indirectly . | . . . . . . . . . . . . . . . . . Trap Hack Attempts . | . . . . . . . . . . . . . . . . . Triggered . | . . . . . . . . . . . . . . . . . Disarmed . | . . . . . . . . . . . . . . . . . Reprogrammed 3 | . . . . . . . . . 3 . . . . . . . Reused 1 | . . . . . . . . . 1 . . . . . . . Traps Extracted . | . . . . . . . . . . . . . . . . . Installed . | . . . . . . . . . . . . . . . . . Triggered 3 | . . . . 1 . . . . 1 . . . . 1 . . Exploded 3 | . . . . . 3 . . . . . . . . . . . Machines | -11 -10 -10 -9 -9 -9 -8 -8 -8 -8 -7 -7 -7 -7 -6 -6 -6 ---------- Run | Jun Mat Min Mat Min Exi Min Mat Gar Mat Fac Low Low Zio Pro Fac Gar Machines Disabled 222 | . 25 6 55 3 6 2 37 14 35 34 . . . . 2 3 Max in Single Turn 6 | . 2 2 2 1 1 1 2 1 3 6 . . . . . 1 Garrison Relay 7 | . . . . . . . . 6 . . . . . . . 1 Machines Repaired 4 | . . . 3 . . . 1 . . . . . . . . . Machines Sabotaged . | . . . . . . . . . . . . . . . . . Overloaded Fab Kills . | . . . . . . . . . . . . . . . . . Hacking | -11 -10 -10 -9 -9 -9 -8 -8 -8 -8 -7 -7 -7 -7 -6 -6 -6 --------- Run | Jun Mat Min Mat Min Exi Min Mat Gar Mat Fac Low Low Zio Pro Fac Gar Machines Accessed 73 | . 8 3 14 1 1 . 15 3 10 14 . 1 1 . 2 . Terminals 45 | . 6 1 12 . . . 9 3 8 6 . . . . . . Fabricators 2 | . . . . . . . . . . 2 . . . . . . Repair Stations 2 | . . . . . . . 2 . . . . . . . . . Recycling Units 11 | . 2 . 1 . . . 1 . 2 5 . . . . . . Scanalyzers 5 | . . . 1 . . . 2 . . 1 . . . . 1 . Garrison Access 2 | . . . . . . . 1 . . . . . . . 1 . Total Hacks 354 | . 28 11 80 1 1 . 87 14 51 68 . 1 6 . 6 . Successful 223 | . 18 5 51 1 1 . 60 5 31 39 . 1 6 . 5 . Failed 129 | . 10 6 28 . . . 26 9 20 29 . . . . 1 . Catastrophic 9 | . . 1 1 . . . 1 2 2 2 . . . . . . Database Lockouts 2 | . . . 1 . . . 1 . . . . . . . . . Manual 153 | . 17 9 22 . 1 . 42 7 19 36 . . . . . . Terminals 238 | . 22 9 73 . . . 54 14 39 27 . . . . . . Fabricators 7 | . . . . . . . . . . 7 . . . . . . Repair Stations 8 | . . . . . . . 8 . . . . . . . . . Recycling Units 54 | . 6 . 4 . . . 7 . 12 25 . . . . . . Scanalyzers 33 | . . . 3 . . . 17 . . 9 . . . . 4 . Garrison Access 3 | . . . . . . . 1 . . . . . . . 2 . Terminal Hacks 114 | . 9 5 36 1 1 . 23 3 19 10 . 1 6 . . . Record 18 | . . . 12 . . . 3 . 3 . . . . . . . Part Schematic 6 | . . . . . . . . . . . . . 6 . . . Robot Analysis 21 | . 3 3 4 . . . 7 . . 4 . . . . . . Prototype ID Bank 19 | . 5 . 4 . . . 2 . 5 3 . . . . . . Open Door 5 | . . 2 . 1 . . . 1 . . . 1 . . . . Level Access Points 2 | . . . 1 . . . . . 1 . . . . . . . Branch Access Points 2 | . . . 1 . . . . . 1 . . . . . . . Emergency Access Points 2 | . . . . . . . 1 1 . . . . . . . . Machine Index 1 | . . . . . . . . . 1 . . . . . . . Terminal Index 1 | . . . 1 . . . . . . . . . . . . . Recycling Unit Index 1 | . . . 1 . . . . . . . . . . . . . Scanalyzer Index 1 | . . . 1 . . . . . . . . . . . . . Alert Level 4 | . . . 1 . . . 2 . 1 . . . . . . . Unreport Threat 12 | . . . 4 . . . 3 . 3 2 . . . . . . Locate Traps 1 | . . . . . . . . . 1 . . . . . . . Reprogram Traps 1 | . . . . . . . . . 1 . . . . . . . Dispatch Records 2 | . . . 1 . . . 1 . . . . . . . . . Security Status 1 | . . . . . . . 1 . . . . . . . . . Surveillance Status 2 | . . . . . . . 2 . . . . . . . . . Recall Investigation 1 | . . . 1 . . . . . . . . . . . . . Hauler Manifests 1 | . . . 1 . . . . . . . . . . . . . Registered Components 2 | . . . 1 . . . 1 . . . . . . . . . Registered Prototypes 1 | . . . . . . . . . . 1 . . . . . . Zone Layout 5 | . 1 . 2 . . . . . 2 . . . . . . . Garrison Registry 1 | . . . . . . . . 1 . . . . . . . . EX-Prototype ID Bank 1 | . . . . . 1 . . . . . . . . . . . Fabricator Hacks . | . . . . . . . . . . . . . . . . . Repair Station Hacks 6 | . . . . . . . 6 . . . . . . . . . Scan Component 3 | . . . . . . . 3 . . . . . . . . . Repair 3 | . . . . . . . 3 . . . . . . . . . Recycling Unit Hacks 14 | . . . 2 . . . 2 . 3 7 . . . . . . Report Inventory 7 | . . . 1 . . . 1 . 2 3 . . . . . . Retrieve Matter 3 | . . . . . . . . . . 3 . . . . . . Retrieve Components 4 | . . . 1 . . . 1 . 1 1 . . . . . . Scanalyzer 28 | . . . 3 . . . 16 . . 5 . . . . 4 . Insert Component 11 | . . . 1 . . . 6 . . 2 . . . . 2 . Analyze 17 | . . . 2 . . . 10 . . 3 . . . . 2 . Garrison Access Hacks 2 | . . . . . . . 1 . . . . . . . 1 . Unlock Access 2 | . . . . . . . 1 . . . . . . . 1 . Unauthorized Hacks 59 | . 9 . 10 . . . 12 2 9 17 . . . . . . Terminals 32 | . 5 . 9 . . . 9 2 3 4 . . . . . . Botnet 16 | . 3 . 2 . . . 4 1 2 4 . . . . . . Sabotage 8 | . . . 6 . . . 2 . . . . . . . . . Search 7 | . 2 . 1 . . . 3 . 1 . . . . . . . Override 1 | . . . . . . . . 1 . . . . . . . . Fabricators 3 | . . . . . . . . . . 3 . . . . . . Report 1 | . . . . . . . . . . 1 . . . . . . Fabnet 2 | . . . . . . . . . . 2 . . . . . . Repair Stations . | . . . . . . . . . . . . . . . . . Recycling Units 24 | . 4 . 1 . . . 3 . 6 10 . . . . . . Monitor 4 | . . . . . . . 1 . 1 2 . . . . . . Reject 8 | . 1 . . . . . 1 . 2 4 . . . . . . Mask 8 | . 1 . . . . . 1 . 2 4 . . . . . . Tunnel 4 | . 2 . 1 . . . . . 1 . . . . . . . Scanalyzers . | . . . . . . . . . . . . . . . . . Garrison Access . | . . . . . . . . . . . . . . . . . Data Cores Recovered 5 | . . . 1 . . . 2 . . 1 . . . . 1 . Used 1 | . . . 1 . . . . . . . . . . . . . Hacking Detections 49 | . 8 1 8 . . . 10 3 7 11 . . . . 1 . Full Trace Events 15 | . 1 1 3 . . . 2 2 2 4 . . . . . . Feedback Events . | . . . . . . . . . . . . . . . . . Feedback Blocked . | . . . . . . . . . . . . . . . . . Robot Schematics Acquired 4 | . . . . . . . . . . . . . 4 . . . Robots Built . | . . . . . . . . . . . . . . . . . Authchips . | . . . . . . . . . . . . . . . . . Time . | . . . . . . . . . . . . . . . . . Total Robot Build Rating . | . . . . . . . . . . . . . . . . . Part Schematics Acquired 31 | . . . 1 . . . 5 . . 2 . . 21 . 2 . Parts Built . | . . . . . . . . . . . . . . . . . Authchips . | . . . . . . . . . . . . . . . . . Time . | . . . . . . . . . . . . . . . . . Total Part Build Rating . | . . . . . . . . . . . . . . . . . Parts Repaired 3 | . . . . . . . 3 . . . . . . . . . Time 231 | . . . . . . . 231 . . . . . . . . . Parts Recycled . | . . . . . . . . . . . . . . . . . Recycled Matter . | . . . . . . . . . . . . . . . . . Retrieved Matter . | . . . . . . . . . . . . . . . . . Retrieved Components 31 | . . . 9 . . . 9 . 3 10 . . . . . . Parts Scanalyzed 10 | . . . 1 . . . 5 . . 2 . . . . 2 . Part Schematics Acquired 10 | . . . 1 . . . 5 . . 2 . . . . 2 . Parts Damaged 2 | . . . . . . . 1 . . 1 . . . . . . Bothacking | -11 -10 -10 -9 -9 -9 -8 -8 -8 -8 -7 -7 -7 -7 -6 -6 -6 ------------ Run | Jun Mat Min Mat Min Exi Min Mat Gar Mat Fac Low Low Zio Pro Fac Gar Used RIF Installer . | . . . . . . . . . . . . . . . . . Robots Hacked 6 | . . . 2 . 4 . . . . . . . . . . . Non-combat 5 | . . . 2 . 3 . . . . . . . . . . . Combat 1 | . . . . . 1 . . . . . . . . . . . Robot Hacks Applied 7 | . . . 2 . 5 . . . . . . . . . . . parse_system 6 | . . . 1 . 5 . . . . . . . . . . . no_distress 1 | . . . 1 . . . . . . . . . . . . . Relay Couplers Released 13 | . . . . . . . . 10 . 2 . . . . . 1 Machine Destruction 11 | . . . . . . . . 10 . . . . . . . 1 Programmers 2 | . . . . . . . . . . 2 . . . . . . Fabnet Peak Effective % . | . . . . . . . . . . . . . . . . . Robots Rewired . | . . . . . . . . . . . . . . . . . Allies Hacked . | . . . . . . . . . . . . . . . . . Hacks Repelled . | . . . . . . . . . . . . . . . . . Allies | -11 -10 -10 -9 -9 -9 -8 -8 -8 -8 -7 -7 -7 -7 -6 -6 -6 -------- Run | Jun Mat Min Mat Min Exi Min Mat Gar Mat Fac Low Low Zio Pro Fac Gar Total Allies 14 | . . 4 . 2 . . . 2 . . . . 4 . . 2 Largest Group 4 | . . 4 3 2 2 . . 2 1 . . . 4 4 3 2 Highest-Rated Group 126 | . . 71 40 41 41 . . 51 20 . . . 126 126 98 102 Highest-Rated Ally 51 | . . 31 16 31 31 . . 31 20 . . . 39 39 39 51 Total Orders 3 | . . 3 . . . . . . . . . . . . . . STAY 1 | . . 1 . . . . . . . . . . . . . . ROAM 1 | . . 1 . . . . . . . . . . . . . . FOLLOW 1 | . . 1 . . . . . . . . . . . . . . Ally Attacks 73 | . . . 11 9 . . . 4 2 . . . . 13 17 17 Total Damage 1342 | . . . 110 124 . . . 68 85 . . . . 185 545 225 Kills 17 | . . . 2 3 . . . 1 1 . . . . 2 7 1 Allies Corrupted . | . . . . . . . . . . . . . . . . . Allies Melted . | . . . . . . . . . . . . . . . . . Intel | -11 -10 -10 -9 -9 -9 -8 -8 -8 -8 -7 -7 -7 -7 -6 -6 -6 ------- Run | Jun Mat Min Mat Min Exi Min Mat Gar Mat Fac Low Low Zio Pro Fac Gar Robot Analysis Total 20 | . 3 2 4 . . . 7 . . 4 . . . . . . Derelict Logs Recovered 10 | . . 2 . 2 . . . . . . 2 2 1 1 . . Drone Launches . | . . . . . . . . . . . . . . . . . Drone Recoveries . | . . . . . . . . . . . . . . . . . Decoded 0b10 Intel 44 | . . . . . . . . . . . . . . . 29 15 Traps 5 | . . . . . . . . . . . . . . . 2 3 Emergency Access 1 | . . . . . . . . . . . . . . . . 1 Items 37 | . . . . . . . . . . . . . . . 26 11 Garrisons 1 | . . . . . . . . . . . . . . . 1 . Exploration | -11 -10 -10 -9 -9 -9 -8 -8 -8 -8 -7 -7 -7 -7 -6 -6 -6 ------------- Run | Jun Mat Min Mat Min Exi Min Mat Gar Mat Fac Low Low Zio Pro Fac Gar Turns Passed 27014 | 142 2598 1229 3740 1568 1487 814 2784 1541 1727 2783 1686 1509 1740 983 335 348 Spaces Moved 13835 | 74 1257 678 1617 730 817 487 1140 816 771 1186 819 969 1336 749 226 163 Core 3 | 1 . . . . 2 . . . . . . . . . . . Treads 4439 | . 866 678 1617 730 548 . . . . . . . . . . . Legs 8929 | . . . . . 267 487 1140 816 771 1186 819 969 1336 749 226 163 Wheels 464 | 73 391 . . . . . . . . . . . . . . . Hover . | . . . . . . . . . . . . . . . . . Flight . | . . . . . . . . . . . . . . . . . Fastest Speed 100 | 100 100 160 160 160 120 120 120 120 120 122 122 122 122 122 122 125 Average Speed 142 | 100 141 160 160 160 150 120 151 129 121 133 191 140 122 122 123 125 Slowest Speed 700 | 100 160 160 160 160 700 120 190 190 122 192 192 192 122 122 125 125 Overloaded Moves . | . . . . . . . . . . . . . . . . . Propulsion Burnouts . | . . . . . . . . . . . . . . . . . Robots Hopped . | . . . . . . . . . . . . . . . . . Cave-ins Triggered . | . . . . . . . . . . . . . . . . . Exploration Rate (%) 73 | 3 98 100 96 98 89 93 92 83 55 39 95 95 89 94 9 26 Regions Visited 16 Branch Regions 8 Pre-discovered Areas 11 | . 2 1 1 1 . . . . 1 . 3 . 2 . . . Known Exits Taken 8 | . . . 1 . . 1 1 . 1 1 1 . . 1 1 . Unknown Exits Taken 7 | 1 1 1 . 1 1 . . . . . . 1 1 . . . Scrap Searched 16 | . . 2 . 1 . 1 . . . . 3 4 2 3 . . Spaces Dug 26 | . . . . . . . 17 . 6 3 . . . . . . Terrain Destroyed 1834 | . 129 37 478 23 8 13 308 53 418 300 35 23 . . 2 7 Melee . | . . . . . . . . . . . . . . . . . Projectile 524 | . 8 . . 13 8 12 140 52 185 42 35 20 . . 2 7 AOE 1291 | . 121 37 478 10 . . 165 . 231 249 . . . . . . Terrain Rammed . | . . . . . . . . . . . . . . . . . Walls Destroyed . | . . . . . . . . . . . . . . . . . Machines Disabled . | . . . . . . . . . . . . . . . . . Actions | -11 -10 -10 -9 -9 -9 -8 -8 -8 -8 -7 -7 -7 -7 -6 -6 -6 --------- Run | Jun Mat Min Mat Min Exi Min Mat Gar Mat Fac Low Low Zio Pro Fac Gar Total 19419 | 114 1815 790 2421 1042 1031 685 2016 1215 1404 2130 910 1086 1449 802 261 248 Wait 3322 | 16 371 67 434 231 115 120 610 257 410 506 31 39 62 24 12 17 Move 13821 | 73 1256 677 1616 729 816 486 1140 815 770 1185 818 968 1335 748 226 163 Hop . | . . . . . . . . . . . . . . . . . Pick Up 87 | 4 3 4 13 1 16 . 6 1 6 5 4 5 12 2 3 2 Fast Attach 89 | 2 12 7 10 4 7 6 10 3 2 5 1 7 7 4 2 . Attach 26 | 3 . . 2 . 8 . 1 1 1 . . 2 6 . 1 1 Detach 12 | . . 1 1 . 4 . 1 . . . . . 3 2 . . Swap 38 | . 4 2 5 1 3 . 7 . 1 5 . . 5 . 1 4 Drop 145 | 1 16 7 20 3 22 5 9 3 6 10 5 10 18 4 6 . Fire 1350 | 15 135 16 232 60 35 43 161 83 158 283 28 31 . 8 10 52 Melee 8 | . . . 2 . 5 . . . . . . . 1 . . . Ram . | . . . . . . . . . . . . . . . . . Kick . | . . . . . . . . . . . . . . . . . Crush . | . . . . . . . . . . . . . . . . . Escape Stasis 9 | . . . . . . . . 5 . 4 . . . . . . Rewire 1 | . . . . . . . . . . . . 1 . . . . Trap . | . . . . . . . . . . . . . . . . . Miscellaneous 511 | . 18 9 86 13 . 25 71 47 50 127 23 23 . 10 . 9 Route ------- -11/Junkyard -10/Materials (discovered 4 exits: *Mat x3 / *Min) -10/Mines (discovered 2 exits: *Mat x2) -9/Materials (discovered 4 exits: *Mat x3 / *Min) -9/Mines (discovered 3 exits: *Mat x2 / *Exi) -9/Exiles (discovered 2 exits: [*Min x2]) -8/Mines (discovered 2 exits: *Mat x2) -8/Materials (discovered 4 exits: *Fac x2 / *Sto / Gar) -8/Garrison (discovered 3 exits: *Mat x3) -8/Materials (discovered 4 exits: *Fac x3 / *Sto) -7/Factory -7/Lower Caves -7/Lower Caves (discovered 2 exits: *Fac / *Zio) -7/Zion -6/Proximity Caves -6/Factory (discovered 3 exits: Fac / Low / Gar) -6/Garrison History --------- Turn | Location | Event 2 | -11/Junkyard | Discovered new exit (range 1) 4 | -11/Junkyard | Upgraded with Utility slot (x2) 4 | -11/Junkyard | Upgraded with Weapon slot (x1) 143 | -11/Junkyard | Entered Materials 312 | -10/Materials | Build established: Mutant 512 | -10/Materials | Discovered new exit (range 15) 805 | -10/Materials | Discovered new exit (range 9) 891 | -10/Materials | Reached level 2 895 | -10/Materials | Build established: Scavenger-Mutant 915 | -10/Materials | Upgraded with Propulsion slot (x1) 979 | -10/Materials | Discovered new exit (range 12) 1219 | -10/Materials | Build established: Mutant 1372 | -10/Materials | Discovered new exit (range 16) 1648 | -10/Materials | Reached level 3 1998 | -10/Materials | Build established: Hacker-Mutant 2344 | -10/Materials | Reached level 4 2483 | -10/Materials | Upgraded with Utility slot (x1) 2741 | -10/Materials | Entered Mines 2829 | -10/Mines | Met a Derelict bent on vengeance 2831 | -10/Mines | Discovered new exit (range 9) 3042 | -10/Mines | Learned Materials emergency access door positions 3056 | -10/Mines | Assisted by bots powering up and referring to "LRC-V3" 3101 | -10/Mines | Met a Derelict who couldn't figure out how to use a Trap Extractor 3276 | -10/Mines | Received a Mining Laser from a helpful Derelict 3548 | -10/Mines | Found the Drone Emporium 3556 | -10/Mines | Found Prototype Device 3590 | -10/Mines | Reached level 5 3600 | -10/Mines | Discovered new exit (range 16) 3626 | -10/Mines | Identified Sensor Drone Bay 3669 | -10/Mines | Upgraded with Weapon slot (x1) 3970 | -10/Mines | Entered Materials 3970 | -9/Materials | Accompanied by 3 allies 3972 | -9/Materials | Reached level 6 4267 | -9/Materials | Upgraded with Utility slot (x1) 4296 | -9/Materials | Reached level 7 4378 | -9/Materials | Discovered new exit (range 9) 4558 | -9/Materials | Identified exit to Mines 4558 | -9/Materials | Central database locked down 4749 | -9/Materials | Reached level 8 4852 | -9/Materials | Discovered new exit (range 15) 5257 | -9/Materials | Reached level 9 5373 | -9/Materials | Identified exit to Materials 5589 | -9/Materials | Upgraded with Weapon slot (x1) 5970 | -9/Materials | First assault squad dispatched 6193 | -9/Materials | Reached level 10 7205 | -9/Materials | High security lockdown imminent 7285 | -9/Materials | High security lockdown engaged 7349 | -9/Materials | Sterilization system engaged 7349 | -9/Materials | Non-combat units ordered to evacuate 7352 | -9/Materials | Reached level 11 7394 | -9/Materials | Destroyed 9 combat bots 7435 | -9/Materials | Build established: Hacker-Tank 7449 | -9/Materials | Combat units ordered to evacuate 7649 | -9/Materials | Ambient heat levels rising (+10) 7710 | -9/Materials | Entered Mines 7710 | -9/Mines | Upgraded with Power slot (x1) 7802 | -9/Mines | Met a Derelict shopkeep closing up shop 8116 | -9/Mines | Build established: Hacker-Gunner 8172 | -9/Mines | Received a Rocket Launcher from a helpful Derelict 8350 | -9/Mines | Discovered exit to Materials (range 7) 8405 | -9/Mines | Learned Materials emergency access door positions 8482 | -9/Mines | Excavation squad dispatched 8482 | -9/Mines | A large section of the Mines collapsed 8761 | -9/Mines | Learned location of 1 exit from Materials 8953 | -9/Mines | Discovered exit to Materials (range 9) 8978 | -9/Mines | Learned location of Storage (-8) 9264 | -9/Mines | Deemed a non-threat by the Exiles lab entrance 9264 | -9/Mines | Discovered new exit (range 5) 9278 | -9/Mines | Entered Exiles 9278 | -9/Exiles | Accompanied by 2 allies 9308 | -9/Exiles | Led the pair of lost Derelicts to a safe place 9321 | -9/Exiles | Met 8R-AWN 9350 | -9/Exiles | Met EX-HEX 9437 | -9/Exiles | Met EX-DEC 9493 | -9/Exiles | Met EX-BIN 9520 | -9/Exiles | Aligned with FarCom system 9522 | -9/Exiles | Given EX-Vault access code 9559 | -9/Exiles | Opened EX-Vault 9573 | -9/Exiles | Found Modified TNC 9609 | -9/Exiles | Warned to stay clear of 0b10 Research branches 9648 | -9/Exiles | Build established: Hacker-Mutant 9999 | -9/Exiles | Discovered new exit (range 15) 10133 | -9/Exiles | Attacked by the Exiles 10275 | -9/Exiles | Destroyed 8R-AWN 10306 | -9/Exiles | Found AS-neutralizer No. 17b 10314 | -9/Exiles | Found 8R-AWN's Boregun 10318 | -9/Exiles | Found 8R-AWN's Boregun 10322 | -9/Exiles | Found Exp. Targeting Computer 10348 | -9/Exiles | Core integrity fell below 50% 10466 | -9/Exiles | Destroyed EX-DEC 10468 | -9/Exiles | Destroyed EX-BIN 10498 | -9/Exiles | Destroyed EX-HEX 10536 | -9/Exiles | Found System Purifier 10553 | -9/Exiles | Found Exp. Core Analyzer 10581 | -9/Exiles | Build established: Scavenger-Mutant 10683 | -9/Exiles | Found 8R-AWN's Armor/EX 10745 | -9/Exiles | Discovered new exit (range 15) 10765 | -9/Exiles | Left Exiles lab with Modified TNC 10765 | -9/Exiles | Entered Mines 10799 | -8/Mines | Reached level 12 10804 | -8/Mines | Upgraded with Propulsion slot (x1) 10877 | -8/Mines | AD-0RF came to Exiles' defense 10885 | -8/Mines | Destroyed AD-0RF 10918 | -8/Mines | Found Prototype Device 10918 | -8/Mines | Identified Exp. Thermal Shield 11056 | -8/Mines | Discovered exit to Materials (range 11) 11238 | -8/Mines | Discovered exit to Materials (range 13) 11579 | -8/Mines | Entered Materials 11580 | -8/Materials | Identified exit to Factory 11581 | -8/Materials | Reached level 13 11583 | -8/Materials | Upgraded with Utility slot (x1) 12060 | -8/Materials | Repaired Cold Fusion Reactor 12118 | -8/Materials | Repaired Rnf. Fission Core 12262 | -8/Materials | Destroyed 8 combat bots 12379 | -8/Materials | First assault squad dispatched 12467 | -8/Materials | Reached level 14 12471 | -8/Materials | Upgraded with Utility slot (x1) 12607 | -8/Materials | Central database locked down 12853 | -8/Materials | Discovered new exit (range 16) 13403 | -8/Materials | Repaired Broken Adv. Weapon Cycler 13421 | -8/Materials | Discovered exit to Factory (range 17) 13473 | -8/Materials | Build established: Hacker-Gunner 14315 | -8/Materials | Sterilization system engaged 14315 | -8/Materials | Non-combat units ordered to evacuate 14363 | -8/Materials | Identified exit to Garrison 14363 | -8/Materials | Entered Garrison 14377 | -8/Garrison | Triggered checkpoint 14448 | -8/Garrison | Triggered checkpoint 14453 | -8/Garrison | Reached level 15 14569 | -8/Garrison | Garrison Relay disabled 14647 | -8/Garrison | Upgraded with Propulsion slot (x1) 14726 | -8/Garrison | Triggered checkpoint 14782 | -8/Garrison | Discovered new exit (range 12) 14788 | -8/Garrison | Discovered new exit (range 16) 14788 | -8/Garrison | Discovered new exit (range 46) 14788 | -8/Garrison | Discovered new exit (range 57) 14788 | -8/Garrison | Identified exit to Materials 14806 | -8/Garrison | Triggered checkpoint 14852 | -8/Garrison | Garrison Relay disabled 14870 | -8/Garrison | Garrison Relay disabled 14966 | -8/Garrison | Build established: Scavenger-Gunner 15002 | -8/Garrison | Triggered checkpoint 15044 | -8/Garrison | Triggered checkpoint 15104 | -8/Garrison | Triggered checkpoint 15129 | -8/Garrison | Garrison Relay disabled 15312 | -8/Garrison | Rescued a captive Derelict 15314 | -8/Garrison | Rescued a captive Derelict 15326 | -8/Garrison | Triggered checkpoint 15350 | -8/Garrison | Garrison Relay disabled 15485 | -8/Garrison | Spotted B-75 Beast 15494 | -8/Garrison | Destroyed B-75 Beast 15729 | -8/Garrison | Garrison Relay disabled 15904 | -8/Garrison | Entered Materials 15904 | -8/Materials | Accompanied by 1 ally 15904 | -8/Materials | Discovered new exit (range 6) 16285 | -8/Materials | Identified exit to Storage 16416 | -8/Materials | Reached level 16 16439 | -8/Materials | Upgraded with Weapon slot (x1) 16704 | -8/Materials | First assault squad dispatched 17114 | -8/Materials | High security lockdown imminent 17194 | -8/Materials | High security lockdown engaged 17302 | -8/Materials | Destroyed 13 combat bots 17338 | -8/Materials | Sterilization system engaged 17338 | -8/Materials | Non-combat units ordered to evacuate 17407 | -8/Materials | Destroyed 18 combat bots 17438 | -8/Materials | Combat units ordered to evacuate 17631 | -8/Materials | Entered Factory 17633 | -7/Factory | Reached level 17 18431 | -7/Factory | First assault squad dispatched 18507 | -7/Factory | Destroyed 7 combat bots 19268 | -7/Factory | Reached level 18 19268 | -7/Factory | High security lockdown imminent 19308 | -7/Factory | Destroyed 7 combat bots 19348 | -7/Factory | High security lockdown engaged 19691 | -7/Factory | Destroyed 32 combat bots 19826 | -7/Factory | Discovered new exit (range 16) 19868 | -7/Factory | Destroyed 24 combat bots 19950 | -7/Factory | Reached level 19 19954 | -7/Factory | Upgraded with Utility slot (x1) 19986 | -7/Factory | Core integrity fell below 50% 20041 | -7/Factory | Destroyed 23 combat bots 20069 | -7/Factory | Sterilization system engaged 20069 | -7/Factory | Non-combat units ordered to evacuate 20132 | -7/Factory | Destroyed 11 combat bots 20169 | -7/Factory | Combat units ordered to evacuate 20259 | -7/Factory | Destroyed 27 combat bots 20369 | -7/Factory | Ambient heat levels rising (+10) 20412 | -7/Factory | Identified exit to Lower Caves 20414 | -7/Factory | Entered Lower Caves 20421 | -7/Lower Caves | Met a Warlord Commander 20422 | -7/Lower Caves | Learned location of Warlord (-5) 20429 | -7/Lower Caves | Found Encrypted Comm Array 21111 | -7/Lower Caves | Encountered a Warlord checkpoint 21837 | -7/Lower Caves | Discovered new exit (range 9) 21852 | -7/Lower Caves | Identified exit to Lower Caves 22100 | -7/Lower Caves | Entered another Lower Caves area 22139 | -7/Lower Caves | Discovered new exit (range 5) 22149 | -7/Lower Caves | Identified exit to Factory 22221 | -7/Lower Caves | Learned location of 1 exit from Factory 22409 | -7/Lower Caves | Attracted the attention of an 0b10 checkpoint 22909 | -7/Lower Caves | Spotted B-75 Beast 22927 | -7/Lower Caves | Destroyed B-75 Beast 23027 | -7/Lower Caves | Encountered a Warlord checkpoint 23255 | -7/Lower Caves | Spotted BR-G9T(f) 23256 | -7/Lower Caves | Spotted I8-0X0(f) 23257 | -7/Lower Caves | Encountered a Master Thief 23257 | -7/Lower Caves | Encountered a Master Thief 23257 | -7/Lower Caves | Spotted V0-S68(f) 23258 | -7/Lower Caves | Encountered a Master Thief 23258 | -7/Lower Caves | Destroyed BR-G9T(f) 23262 | -7/Lower Caves | 8R-AWN's Boregun stolen by Master Thief 23262 | -7/Lower Caves | Destroyed I8-0X0(f) 23265 | -7/Lower Caves | Destroyed V0-S68(f) 23298 | -7/Lower Caves | Discovered new exit (range 6) 23609 | -7/Lower Caves | Entered Zion 23636 | -7/Zion | Gained Derelict followers 23662 | -7/Zion | System corruption cleaned by Quarantine Array 23745 | -7/Zion | Found Prototype Energy Gun 23761 | -7/Zion | Found CR-A16's Pointy Stick 23774 | -7/Zion | Discovered new exit (range 11) 23794 | -7/Zion | Acquired unknown access codes intercepted by a Zionite 24034 | -7/Zion | Found Prototype Hackware 24034 | -7/Zion | Identified Exp. System Shield 24038 | -7/Zion | Found Prototype Processor 24038 | -7/Zion | Identified Exp. Armor Integrity Analyzer 24106 | -7/Zion | System corruption cleaned by Quarantine Array 24107 | -7/Zion | Identified Storm Laser 24252 | -7/Zion | Found Exp. Targeting Computer 24407 | -7/Zion | Build established: Hacker-Gunner 24581 | -7/Zion | Learned Factory emergency access door positions 25349 | -7/Zion | Entered Proximity Caves 25349 | -6/Proximity Caves | Accompanied by 4 allies 25351 | -6/Proximity Caves | Reached level 20 25695 | -6/Proximity Caves | Learned location of 1 exit from Lower Caves 25709 | -6/Proximity Caves | Found Imp. Powered Armor 25889 | -6/Proximity Caves | Spotted B-75 Beast 25897 | -6/Proximity Caves | Destroyed B-75 Beast 26213 | -6/Proximity Caves | Discovered exit to Factory (range 6) 26332 | -6/Proximity Caves | Entered Factory 26332 | -6/Factory | Accompanied by 3 allies 26333 | -6/Factory | Identified exit to Lower Caves 26334 | -6/Factory | Identified exit to Factory 26667 | -6/Factory | Identified exit to Garrison 26667 | -6/Factory | Entered Garrison 26829 | -6/Garrison | Triggered checkpoint 26850 | -6/Garrison | Garrison Relay disabled 26850 | -6/Garrison | Reached level 21 26856 | -6/Garrison | Upgraded with Weapon slot (x1) 26923 | -6/Garrison | Rescued a captive Derelict 26923 | -6/Garrison | Rescued a captive Derelict 26976 | -6/Garrison | Triggered checkpoint 26998 | -6/Garrison | Core integrity fell below 50% 27007 | -6/Garrison | Core integrity fell below 20% 27015 | -6/Garrison | Destroyed by G-67 Veteran with Plasma Rifle Last Messages --------------- 27007_ S-27 Virus suffers critical hit (Destroy). 27007_ S-27 Virus destroyed. 27007_ Switching to secondary target: G-50 Soldier. 27007_ HV Slug penetrates G-50 Soldier. 27007_ Destroyed Hvy. Laser. 27007_ HV Slug penetrates Reinforced Barrier. 27010_ Critical hit (Burn: +37). 27011_ >> DECODED: Reaction Control System location. 27011_ HV Slug penetrates S-27 Virus. 27011_ S-27 Virus suffers critical hit (Destroy). 27011_ Destroyed Lgt. Nuclear Core. 27011_ HV Slug penetrates S-27 Virus. 27011_ S-27 Virus destroyed. 27013_ HV Slug penetrates G-50 Soldier. 27013_ G-50 Soldier suffers critical hit (Destroy). 27013_ Destroyed Lgt. Angular Momentum Engine. 27013_ HV Slug penetrates Reinforced Barrier. 27013_ HV Slug penetrates G-50 Soldier. 27013_ HV Slug penetrates Reinforced Barrier. 27014_ Critical hit (Burn: +37). Map ----- +----------------------------------------------------+ | ?????????????????????????????????????######??????? | | ?????????????????????????????????????# #??????? | | ?????????????????????????????????????# #??????? | | ?????????????????????????????????????# #??????? | | ?????????????????????????????????????# ###??????? | | ?????????????????????????????????????# #????????? | | ?????????????????????????????????????# #????????? | | ?????????????????????????????????????# #????????? | | ?????????????????????????????????????# #????????? | | ?????????????????????????????????????# #????????? | | ?????????????????????????????????????# #????????# | | ?????????????????????????????????????# #????????# | | ??????????????????????????############ !########## | | ??????????????????????????# !%[ =% " | | ??????????????????????????# = %!%%%#### #### | | ??????????????????????????# ###########%#??# #??? | | ??????????????????????????# #?????????#!#?##"##?? | | ??????????????????????????#= #?????????#[#?# #?? | | ??????????????????????????#%!#?????????#=### ### | | ??????????????????????????#%*##### #???#%[ !=* | | ??????????????????????????#[%% #???#"#### #### | | ??????????????????????????#!%#######???!%#??# #??? | | ????????????????????#####?# #?????????#[#??# #??? | | ????????????????????# ?# #?????????# #??# #??? | | ???????????????## ## !%## ##????????# #??# #??? | | ???????????????# %/@ #????????# #??# #??? | | ????????? */!= #???????? ??# #### | | ????????? ^ %%%gg #????????###??# # ] | | ??????????###### ## ![# #?????????????# | | ???????????????# ???# = ## #?????????????###!!! | | ??????????????????? % ? ??????????????#### | | ????????????????? =*=[[? #????????????????? | | ???????????????" %%*[%? #????????????????? | | ??????????????? %%%%? #????????????????? | | ??????????????## g##%g* ?# ###????????????????? | | ???????????????# ?#=g%%?# #??????????????????? | | ?????????????? ??%%!g ?? #?????^????????????? | | ?????+???????? ??? [[ ??? #?????^????????????? | | ??????????????##??? ??? #??????????????????? | | ???????????????????## ??? ##??????????????????? | | ????????????????????# ??? #???????????????????? | | ?????????????????????###??? ????????????????????? | | ?????????????????????????????????????????????????? | | ?????????????????????????????????????????????????? | | ?????????????????????????????????????????????????? | | ?????????????????????????????????????????????????? | | !?]??????????????????????????????????????????????? | | ?]???????????????????????????????????????????????? | | ?????????????????????????????????????????????????? | | ?????????????????????????????????????????????????? | +----------------------------------------------------+ Best States ------------- Heat Dissipation 79 Coolant Potential 120 Energy Generation 33 Energy Capacity 530 Matter Stores 400 Matter Capacity 400 Sight Range 17 Terrain Scan Range 16 Terrain Scan Density 210 Jamming Range 16 Armor Coverage 1125 Resistance: KI 30 Resistance: TH 30 Resistance: EX 90 Resistance: EM 15 Weapon Shielding 90 Weapon Cycling 25 Melee Speed Boost 30 Evasion (%) 55 Targeting Accuracy 12 Core Analysis 8 Armor Integrity Analysis 50 Recoil Reduction 2 Matter Filtering 30 Particle Charging 20 Kinecelleration 40 Salvage Targeting 4 Offensive Hacking 25 Defensive Hacking 35 Trap Extractor Capacity 6 Item Schematics ----------------- Enh. Autogun | -9/Materials | Scanalyzed Exp. Coolant Injector | -8/Materials | Scanalyzed Graphene Brace | -8/Materials | Scanalyzed Adv. Transmission Jammer | -8/Materials | Scanalyzed Adv. Weapon Cycler | -8/Materials | Scanalyzed Exp. Thermal Shield | -8/Materials | Scanalyzed Lrn. Tractor Beam | -7/Factory | Scanalyzed Med. Reactive Plating | -7/Factory | Scanalyzed Mak. System Shield | -7/Zion | Archive Matter Compressor | -7/Zion | Archive Adv. ECM Suite | -7/Zion | Archive Hvy. Flak Cannon | -7/Zion | Archive System Restoration Module | -7/Zion | Archive Lgt. Angular Momentum Engine | -7/Zion | Archive Gravmag System | -7/Zion | Archive KE Penetrator | -7/Zion | Archive Antigrav System | -7/Zion | Archive Component Analysis Suite | -7/Zion | Archive Coil Gun | -7/Zion | Archive Weapon Cycler | -7/Zion | Archive Plasma Flamer | -7/Zion | Archive Hyp. Gauss Rifle | -7/Zion | Archive Hvy. Rocket Launcher | -7/Zion | Archive Hvy. Riot Gun | -7/Zion | Free Riot Gun | -7/Zion | Free Battle Rifle | -7/Zion | Free Hvy. Battle Rifle | -7/Zion | Free Battle Cannon | -7/Zion | Free Tactical Coordination Suite | -7/Zion | Free Imp. Powered Armor | -6/Factory | Scanalyzed Adv. Power Amplifier | -6/Factory | Scanalyzed Robot Schematics ------------------ L-31 Rogue | -7/Zion | Archive K-01 Serf | -7/Zion | Archive G-47 Trooper | -7/Zion | Archive Y-72 Warden | -7/Zion | Archive Fabricated ------------ Nothing Alien Tech Used ----------------- None Achievements -------------- None Challenges ------------ None RPGLIKE | -11 -10 -10 -9 -9 -9 -8 -8 -8 -8 -7 -7 -7 -7 -6 -6 -6 --------- Run | Jun Mat Min Mat Min Exi Min Mat Gar Mat Fac Low Low Zio Pro Fac Gar Levels Raised 20 | . 3 1 6 . . 1 2 1 1 3 . . . 1 . 1 XP Earned 33252 | 3000 4762 1345 9207 632 80 1362 3361 1331 1427 4338 225 231 73 654 641 583 XP Spent 32985 | 2950 3860 1550 7990 1640 . 800 3700 1100 1910 4235 . 100 . 1450 . 1700 Upgrades 60 | 6 12 2 12 5 . 1 2 1 4 11 . 1 . 2 . 1 Power Slot 1 | . . . . 1 . . . . . . . . . . . . Propulsion Slot 3 | . 1 . . . . 1 . 1 . . . . . . . . Utility Slot 7 | 2 1 . 1 . . . 2 . . 1 . . . . . . Weapon Slot 5 | 1 . 1 1 . . . . . 1 . . . . . . 1 Core Integrity 6 | . . . . . . . . . . 6 . . . . . . Heat Dissipation 9 | . 2 . 1 2 . . . . 3 1 . . . . . . Matter Storage 2 | . . . . . . . . . . 2 . . . . . . Mass Support 1 | . . . . . . . . . . . . 1 . . . . Inventory Capacity 5 | 1 1 1 . . . . . . . 1 . . . 1 . . Sight Range 1 | . . . . 1 . . . . . . . . . . . . Terrain Scan Density 2 | . 2 . . . . . . . . . . . . . . . Ranged Accuracy 6 | 2 . . 4 . . . . . . . . . . . . . Hack Attack % 3 | . 2 . 1 . . . . . . . . . . . . . Hack Defense % 3 | . 2 . 1 . . . . . . . . . . . . . KI Resistance % 2 | . . . 2 . . . . . . . . . . . . . KI Damage % 3 | . 1 . 1 1 . . . . . . . . . . . . TH Damage % 1 | . . . . . . . . . . . . . . 1 . . Protomatter Created 8169 | . 232 58 859 199 . 168 940 665 1138 2985 189 420 . 108 17 191 Integrity Restored 9695 | . 366 168 1589 174 . 504 1363 875 863 2502 462 400 . 219 . 210 Core 5478 | . 366 101 862 123 . 504 583 259 476 1647 73 156 . 118 . 210 Parts 4217 | . . 67 727 51 . . 780 616 387 855 389 244 . 101 . . Protomatter Decayed 4904 | . 110 22 388 192 61 . 420 416 888 2052 32 281 . 5 17 20 Game ------ Seed DispersionActivePlating Manual? 1 Play Time 03:19:59 Cumulative 498.8 hours Start 2023.03.21 @ 12:25:14 End 2023.03.21 @ 17:49:15 Sessions 1 Manual Loads 0 Difficulty Rogue Special Mode Winter2019/RPGLIKE Game No. 533 Rogue 533 Adventurer 0 Explorer 0 Win Type - Total 1 Types 1/0/0/0/0/0/0/0/0 Lore% 61 Gallery% 82 Achievement% 65 Wizard Run 0 Options --------- ASCII 0 Keyboard 0 Movement Mouse Keybinds 0 Fullscreen 2 Font 24/Smallcaps Map View 76x50 Tactical HUD 1 Map Filters NONE Filters NONE Steam 1 RUN: 5e68c85f-471d-4578-89f8-18fdd6872a8c